bitfinex/quotes_SOLUSD_20250929
["timestamp","ask_amount","ask_price","bid_price","bid_amount"]
[1759150978407,30.86134537,205.71,205.63,0.71]
[1759150978612,26.0,205.67,205.63,19.61]
[1759150978823,26.0,205.67,205.63,37.55]
[1759150979723,26.0,205.67,205.64,0.71]
[1759150979890,13.59559401,205.73,205.65,0.71]
[1759150980215,26.0,205.7,205.65,0.71]
[1759150980391,26.0,205.7,205.61,0.71]
[1759150980713,13.59559401,205.73,205.58,0.71]
[1759150980714,29.85921658,205.66,205.58,0.71]
[1759150980912,3.17039991,205.73,205.57,33.74]
[1759150980913,3.85921658,205.64,205.57,33.74]
[1759150981219,26.0,205.65,205.58,0.71]
[1759150981399,26.0,205.66,205.58,0.71]
[1759150981599,26.0,205.66,205.59,4.8640498]
[1759150981904,17.45481059,205.65,205.58,39.74]
[1759150982299,26.0,205.62,205.56,0.71]
[1759150982500,26.0,205.62,205.52,4.8657065]
[1759150982501,13.59559401,205.6,205.52,0.71]
[1759150982705,13.59559401,205.6,205.48,1e-08]
[1759150982899,13.59559401,205.56,205.49,0.1]
[1759150983090,3.85921658,205.55,205.49,0.1]
[1759150983323,26.0,205.49,205.48,1e-08]
[1759150983497,39.59559401,205.49,205.48,1e-08]
[1759150983827,26.0,205.49,205.48,1e-08]
[1759150983998,26.0,205.5,205.48,1e-08]
[1759150984694,26.0,205.53,205.49,0.71]
[1759150984996,26.0,205.53,205.48,1e-08]
[1759150985202,26.0,205.53,205.48,0.71000001]
[1759150985400,4.86502923,205.55,205.48,1e-08]
[1759150985605,4.86594326,205.51,205.48,1e-08]
[1759150985821,26.0,205.49,205.48,1e-08]
[1759150987719,4.86641685,205.49,205.48,1e-08]
[1759150987919,26.0,205.49,205.48,1e-08]
[1759150988423,29.85921658,205.49,205.48,1e-08]
[1759150989342,43.45481059,205.49,205.48,1e-08]
[1759150989916,48.32122744,205.49,205.48,1e-08]
[1759150990113,44.46201086,205.49,205.48,1e-08]
[1759150990338,48.32122744,205.49,205.48,1e-08]
[1759150990842,13.59559401,205.5,205.48,1e-08]
[1759150991018,13.59559401,205.51,205.48,1e-08]
[1759150991349,4.51072882,205.5,205.48,1e-08]
[1759150991517,30.51072882,205.5,205.48,1e-08]
[1759150991833,4.86641685,205.49,205.48,1e-08]
[1759150992140,44.46201086,205.49,205.48,1e-08]
[1759150992327,48.97273968,205.49,205.48,1e-08]
[1759150995455,13.59559401,205.48,205.46,1e-08]
[1759150995951,18.46248455,205.47,205.46,1e-08]
[1759150996647,18.46248455,205.47,205.35,37.48278237]
[1759150996648,26.0,205.44,205.35,37.48278237]
[1759150996852,4.51072882,205.37,205.35,37.48278237]
[1759150997203,26.0,205.42,205.35,37.48278237]
[1759150997204,4.51072882,205.36,205.35,37.48278237]
[1759150998262,26.0,205.37,205.35,38.17278237]
[1759150998426,4.51072882,205.36,205.35,37.48278237]
[1759150999131,26.0,205.37,205.35,37.48278237]
[1759150999337,4.51072882,205.36,205.35,37.48278237]
[1759150999537,18.10632283,205.36,205.35,37.48278237]
[1759150999932,22.97582029,205.36,205.35,37.48278237]
[1759151000132,18.10632283,205.36,205.35,37.48278237]
[1759151000348,26.0,205.36,205.35,38.17278237]
[1759151000528,13.59559401,205.39,205.35,38.17278237]
[1759151000733,13.59559401,205.42,205.36,0.69]
[1759151000951,4.51072882,205.42,205.36,0.69]
[1759151001143,26.0,205.41,205.36,0.69]
[1759151001342,4.51072882,205.42,205.36,0.69]
[1759151001627,26.0,205.41,205.36,0.69]
[1759151001833,4.51072882,205.45,205.36,0.69]
[1759151002029,4.51072882,205.48,205.37,4.86926035]
[1759151002248,13.59559401,205.48,205.38,0.71]
[1759151002445,6.66969447,205.49,205.38,0.71]
[1759151002845,26.0,205.48,205.38,0.71]
[1759151003059,30.86681382,205.48,205.39,4.86878621]
[1759151003256,4.86681382,205.48,205.4,0.71]
[1759151003563,26.0,205.48,205.4,40.57]
[1759151003756,26.0,205.48,205.41,0.71]
[1759151004643,26.0,205.49,205.41,0.71]
[1759151004837,26.0,205.47,205.41,0.71]
[1759151005255,26.0,205.47,205.41,5.57817411]
[1759151005455,26.0,205.47,205.42,0.71]
[1759151005656,30.86689252,205.47,205.42,0.71]
[1759151006560,26.0,205.47,205.42,0.71]
[1759151006752,32.6695889,205.49,205.42,0.71]
[1759151007060,37.53605058,205.49,205.42,0.71]
[1759151007355,26.0,205.46,205.42,0.71]
[1759151007758,26.0,205.46,205.43,0.71]
[1759151008061,26.0,205.46,205.44,0.71]
[1759151008480,26.0,205.46,205.45,0.71]
[1759151009069,12.1627663,205.55,205.45,0.71]
[1759151009289,26.0,205.48,205.45,0.71]
[1759151009575,26.0,205.48,205.42,39.76]
[1759151009576,11.53558541,205.51,205.43,0.71]
[1759151009784,6.6695889,205.48,205.4,0.71]
[1759151009988,26.0,205.47,205.41,39.74]
[1759151010993,32.6695889,205.47,205.42,0.71]
[1759151011192,32.6695889,205.47,205.43,0.71]
[1759151011488,32.6695889,205.47,205.44,0.71]
[1759151011675,37.53648083,205.47,205.44,0.71]
[1759151012076,37.53648083,205.47,205.4,39.74]
[1759151012276,37.53648083,205.47,205.42,0.71]
[1759151012474,37.53648083,205.47,205.43,0.71]
[1759151013388,37.53648083,205.47,205.41,39.68]
[1759151013577,32.6695889,205.47,205.42,0.71]
[1759151013771,3.17560981,205.49,205.42,0.71]
[1759151013962,6.6695889,205.5,205.42,0.71]
[1759151014292,32.6695889,205.5,205.42,0.71]
[1759151014486,6.6695889,205.5,205.42,0.71]
[1759151014686,11.5358506,205.5,205.42,0.71]
[1759151014867,11.5358506,205.5,205.42,5.57804246]
[1759151015072,26.0,205.49,205.43,40.37]
[1759151015272,26.0,205.49,205.44,0.71]
[1759151015470,26.0,205.43,205.39,0.71]
[1759151015967,26.0,205.43,205.4,0.71]
[1759151016166,6.6695889,205.43,205.38,0.71]
[1759151016368,26.0,205.45,205.39,0.71]
[1759151016672,13.59559401,205.46,205.39,0.71]
[1759151016878,4.86783819,205.43,205.39,0.71]
[1759151017668,37.53720896,205.44,205.4,0.71]
[1759151017866,26.0,205.44,205.4,0.71]
[1759151018071,26.0,205.42,205.41,0.71]
[1759151018288,32.6695889,205.45,205.41,0.71]
[1759151018699,20.26518291,205.5,205.42,0.71]
[1759151018905,11.53553216,205.51,205.43,4.86783819]
[1759151019094,6.6695889,205.51,205.44,40.45]
[1759151019294,32.6695889,205.51,205.45,0.71]
[1759151019604,37.53557266,205.51,205.45,0.71]
[1759151019893,11.53557266,205.51,205.45,0.71]
[1759151020100,26.0,205.5,205.45,0.71]
[1759151020395,26.0,205.49,205.45,0.71]
[1759151020788,26.0,205.49,205.45,4.86733416]
[1759151020983,26.0,205.49,205.46,0.71]
[1759151021185,26.0,205.49,205.44,39.74]
[1759151021381,26.0,205.5,205.45,0.71]
[1759151021882,26.0,205.5,205.46,0.71]
[1759151022079,39.68,205.58,205.47,0.71]
[1759151022295,13.59559401,205.55,205.47,0.71]
[1759151022479,4.86452303,205.57,205.42,39.66]
[1759151022480,26.0,205.48,205.42,39.66]
[1759151022987,30.86666192,205.48,205.42,39.66]
[1759151023183,6.36383096,205.58,205.43,4.86783819]
[1759151023403,26.0,205.5,205.44,0.71]
[1759151023611,13.59559401,205.53,205.44,0.71]
[1759151023781,39.59559401,205.53,205.44,0.71]
[1759151024385,26.0,205.53,205.44,0.71]
[1759151024988,26.0,205.53,205.45,4.86736432]
[1759151024989,30.86569288,205.53,205.45,4.86736432]
[1759151025206,30.86569288,205.53,205.46,0.71]
[1759151025586,26.0,205.53,205.46,0.71]
[1759151025785,4.86551346,205.53,205.46,0.71]
[1759151026302,30.86551346,205.53,205.47,39.68]
[1759151026691,26.0,205.53,205.44,17.03655655]
[1759151027005,26.0,205.53,205.49,4.86641685]
[1759151027219,20.26518291,205.52,205.44,0.71]
[1759151027411,23.46521579,205.52,205.44,0.71]
[1759151027981,16.79562689,205.52,205.44,0.71]
[1759151028187,23.46521579,205.52,205.44,0.71]
[1759151028899,16.79562689,205.52,205.44,0.71]
[1759151029102,4.86594326,205.51,205.45,4.86736432]
[1759151030402,21.66144146,205.52,205.44,0.71]
[1759151030602,21.66144146,205.52,205.44,5.57741092]
[1759151030801,21.66144146,205.52,205.45,0.71]
[1759151031412,28.33103036,205.52,205.43,0.72]
[1759151031796,40.49529661,205.52,205.43,40.38]
[1759151032091,13.59559401,205.47,205.4,0.72]
[1759151032408,26.0,205.44,205.39,39.66]
[1759151032615,26.0,205.44,205.4,0.72]
[1759151032991,26.0,205.38,205.35,37.48278237]
[1759151033603,13.59559401,205.43,205.36,0.72]
[1759151033813,26.0,205.4,205.35,37.48278237]
[1759151034210,4.86878621,205.39,205.35,77.26278237]
[1759151034503,4.86878621,205.39,205.35,37.48278237]
[1759151034723,26.0,205.4,205.35,37.48278237]
[1759151035613,26.0,205.4,205.36,0.72]
[1759151035913,30.86856353,205.4,205.36,0.72]
[1759151036209,30.86856353,205.4,205.35,37.48278237]
[1759151036392,30.86856353,205.4,205.35,77.94278237]
[1759151036589,26.0,205.4,205.35,77.94278237]
[1759151036998,26.0,205.4,205.35,82.09248036]
[1759151037205,20.26518291,205.43,205.35,82.09248036]
[1759151037206,39.59559401,205.43,205.36,0.72]
[1759151037699,39.59559401,205.43,205.37,39.72]
[1759151037903,46.26518291,205.43,205.37,39.72]
[1759151038501,51.13308369,205.43,205.37,44.58919938]
[1759151038819,44.46349479,205.43,205.37,44.58919938]
[1759151039515,44.46349479,205.43,205.38,39.7]
[1759151039721,44.46349479,205.43,205.38,39.68]
[1759151040417,44.46349479,205.43,205.36,0.72]
[1759151040598,56.63309027,205.43,205.37,39.68]
[1759151040796,13.59559401,205.39,205.35,37.48278237]
[1759151041095,26.0,205.36,205.35,37.48278237]
[1759151041295,39.59559401,205.36,205.35,37.48278237]
[1759151042015,39.59559401,205.36,205.35,7.72348697]
[1759151042608,44.46509147,205.36,205.35,7.72348697]
[1759151043107,51.13468037,205.36,205.35,7.72348697]
[1759151043306,44.46509147,205.36,205.35,7.72348697]
[1759151044299,51.13468037,205.36,205.35,7.72348697]
[1759151044914,13.59559401,205.31,205.23,0.72]
[1759151045220,13.59559401,205.31,205.23,30.66]
[1759151045915,13.59559401,205.27,205.17,39.72]
[1759151046120,13.59559401,205.27,205.22,0.22]
[1759151046421,13.59559401,205.27,205.17,39.72]
[1759151046422,26.0,205.3,205.2,6.6695889]
[1759151046604,26.0,205.26,205.17,39.72]
[1759151046804,26.0,205.26,205.2,11.54286806]
[1759151047107,30.87191145,205.26,205.2,79.3]
[1759151047307,26.0,205.26,205.2,79.3]
[1759151047707,30.87194608,205.26,205.19,39.7]
[1759151047917,26.0,205.22,205.15,38.49876033]
[1759151048122,0.5,205.23,205.15,38.49876033]
[1759151048420,39.59559401,205.22,205.15,43.37323167]
[1759151048725,44.46850636,205.22,205.16,0.72]
[1759151049610,44.46850636,205.22,205.15,38.49876033]
[1759151049800,0.5,205.21,205.15,38.49876033]
[1759151050007,13.59559401,205.16,205.15,37.99876033]
[1759151050719,4.87210718,205.25,205.15,37.99876033]
[1759151050930,39.59559401,205.17,205.15,37.99876033]
[1759151051107,26.0,205.17,205.15,37.99876033]
[1759151051305,26.0,205.18,205.15,37.99876033]
[1759151051510,13.59559401,205.17,205.16,0.72]
[1759151051715,26.0,205.18,205.16,0.72]
[1759151052118,13.59559401,205.24,205.17,0.72]
[1759151052323,26.0,205.21,205.17,0.72]
[1759151052629,26.0,205.21,205.18,0.72]
[1759151052806,18.84896047,205.27,205.19,0.72]
[1759151052807,13.59559401,205.22,205.19,0.72]
[1759151053008,26.0,205.24,205.19,0.72]
[1759151053209,13.59559401,205.26,205.2,0.72]
[1759151053425,6.6695889,205.3,205.2,0.72]
[1759151053651,13.59559401,205.29,205.2,0.72]
[1759151054067,26.0,205.25,205.2,39.86]
[1759151054250,26.0,205.25,205.19,39.84]
[1759151054251,13.59559401,205.24,205.19,39.84]
[1759151054563,20.26518291,205.24,205.18,39.84]
[1759151054738,13.59559401,205.22,205.17,0.71]
[1759151054940,13.59559401,205.22,205.17,5.58399908]
[1759151055143,26.0,205.25,205.18,0.71]
[1759151055779,13.59559401,205.3,205.18,7.3795889]
[1759151056058,42.74237476,205.33,205.2,6.6695889]
[1759151056259,26.0,205.26,205.21,40.59]
[1759151056466,26.0,205.26,205.22,0.71]
[1759151056665,26.0,205.26,205.23,0.71]
[1759151056836,13.59559401,205.27,205.18,4.87372203]
[1759151057035,26.0,205.24,205.19,39.88]
[1759151057273,26.0,205.24,205.2,0.71]
[1759151057852,13.59559401,205.23,205.17,0.71]
[1759151058539,13.59559401,205.24,205.17,0.71]
[1759151059043,18.46798595,205.24,205.18,39.88]
[1759151059442,18.46798595,205.24,205.15,38.70876033]
[1759151059650,18.46798595,205.24,205.17,39.92]
[1759151059956,13.59559401,205.17,205.15,37.99876033]
[1759151060337,26.0,205.16,205.15,37.99876033]
[1759151061153,26.0,205.16,205.15,38.66876033]
[1759151061666,13.59559401,205.24,205.15,38.66876033]
[1759151061831,26.0,205.17,205.15,37.99876033]
[1759151062034,39.59559401,205.16,205.15,37.99876033]
[1759151062665,26.0,205.16,205.15,37.99876033]
[1759151062841,26.0,205.16,205.15,38.66876033]
[1759151063367,26.0,205.16,205.15,37.99876033]
[1759151063936,39.59559401,205.21,205.15,38.66876033]
[1759151064538,13.59559401,205.23,205.15,38.66876033]
[1759151064938,26.0,205.2,205.15,38.66876033]
[1759151065137,30.87332358,205.2,205.16,0.67]
[1759151065754,26.0,205.2,205.16,0.67]
[1759151066246,30.87334071,205.2,205.17,0.67]
[1759151066452,26.0,205.2,205.17,0.67]
[1759151066845,26.0,205.2,205.18,0.67]
[1759151067140,44.35377092,205.31,205.19,0.67]
[1759151067141,13.59559401,205.29,205.19,0.67]
[1759151067361,13.59559401,205.25,205.19,0.67]
[1759151067544,26.0,205.22,205.19,0.67]
[1759151067865,13.59559401,205.28,205.2,0.67]
[1759151068267,26.0,205.25,205.2,0.67]
[1759151068444,26.0,205.25,205.21,0.67]
[1759151068660,26.0,205.25,205.22,0.67]
[1759151069051,26.0,205.25,205.2,4.87329434]
[1759151069281,26.0,205.25,205.23,0.67]
[1759151069461,26.0,205.25,205.2,0.67]
[1759151069664,30.87214521,205.25,205.21,0.67]
[1759151069972,13.59559401,205.24,205.17,0.67]
[1759151070166,13.59559401,205.24,205.18,40.42]
[1759151070570,13.59559401,205.24,205.18,41.09]
[1759151070772,26.0,205.23,205.19,0.67]
[1759151070990,26.0,205.27,205.2,4.87329434]
[1759151071188,13.59559401,205.3,205.21,0.67]
[1759151071389,26.0,205.27,205.21,0.67]
[1759151071686,18.46651461,205.3,205.21,0.67]
[1759151072156,26.0,205.27,205.21,0.67]
[1759151072357,4.87044613,205.32,205.21,0.67]
[1759151072557,13.59559401,205.31,205.21,0.67]
[1759151072780,4.52340561,205.3,205.21,0.67]
[1759151073077,4.87163248,205.27,205.21,5.54297332]
[1759151073286,4.87163248,205.27,205.18,40.44]
[1759151073287,26.0,205.23,205.18,0.67]
[1759151073474,26.0,205.23,205.18,40.42]
[1759151074156,26.0,205.23,205.19,0.67]
[1759151074559,26.0,205.23,205.18,40.42]
[1759151074761,26.0,205.23,205.18,41.09]
[1759151075068,30.87281941,205.22,205.19,0.67]
[1759151075253,26.0,205.21,205.19,0.67]
[1759151075668,26.0,205.21,205.18,40.38]
[1759151075874,26.0,205.21,205.2,0.67]
[1759151076277,26.0,205.23,205.2,0.67]
[1759151076493,26.0,205.23,205.21,0.67]
[1759151077768,4.87261828,205.23,205.17,0.67]
[1759151077976,26.0,205.2,205.18,40.38]
[1759151078186,26.0,205.2,205.18,41.05]
[1759151078386,26.0,205.2,205.18,0.67]
[1759151078589,26.0,205.2,205.15,38.66876033]
[1759151078887,26.0,205.19,205.16,41.03]
[1759151079269,26.0,205.19,205.17,0.67]
[1759151079469,26.0,205.24,205.17,0.67]
[1759151081170,13.59559401,205.3,205.18,4.87376937]
[1759151081371,13.59559401,205.3,205.19,0.67]
[1759151081587,26.0,205.27,205.19,0.67]
[1759151081897,3.17827455,205.32,205.19,0.67]
[1759151082068,13.59559401,205.32,205.19,0.67]
[1759151082266,31.20252649,205.33,205.2,40.32]
[1759151082572,4.01298038,205.4,205.21,0.67]
[1759151082573,4.86902327,205.38,205.21,0.67]
[1759151083170,4.86949746,205.36,205.23,17.05403693]
[1759151083370,4.86949746,205.36,205.24,0.67]
[1759151083599,26.0,205.34,205.25,40.3]
[1759151083800,4.86949746,205.36,205.26,0.67]
[1759151084310,26.0,205.34,205.26,0.67]
[1759151084491,26.0,205.34,205.27,40.28]
[1759151084898,26.0,205.34,205.28,0.67]
[1759151085294,26.0,205.32,205.24,0.67]
[1759151085899,26.0,205.32,205.25,40.24]
[1759151086089,15.35707899,205.36,205.26,0.67]
[1759151086090,26.0,205.34,205.26,0.67]
[1759151086488,26.0,205.34,205.27,40.24]
[1759151086884,30.86998153,205.34,205.27,45.11140118]
[1759151087078,26.0,205.34,205.28,0.67]
[1759151087606,30.86997597,205.34,205.28,0.67]
[1759151087778,26.0,205.34,205.28,0.67]
[1759151087979,3.18324065,205.36,205.28,214.67]
[1759151088185,13.59559401,205.38,205.29,0.67]
[1759151089003,4.86878621,205.39,205.3,17.0482221]
[1759151089193,26.0,205.37,205.31,0.67]
[1759151089397,3.1910016,205.4,205.31,214.67]
[1759151089600,4.86783819,205.43,205.32,40.87]
[1759151089800,4.86783819,205.43,205.33,0.67]
[1759151089987,26.0,205.42,205.33,0.67]
[1759151090187,26.0,205.4,205.33,0.67]
[1759151090402,26.0,205.4,205.34,40.22]
[1759151090607,26.0,205.4,205.35,40.2]
[1759151090986,26.0,205.4,205.32,79.3]
[1759151090987,4.86878621,205.39,205.32,79.3]
[1759151091193,17.04075173,205.39,205.33,40.2]
[1759151091390,20.23175333,205.39,205.33,40.2]
[1759151091821,26.0,205.36,205.33,40.2]
[1759151092006,3.98875201,205.62,205.42,26.0]
[1759151092318,2.5449503,205.67,205.52,20.0]
[1759151092514,2.5449503,205.67,205.55,26.0]
[1759151092815,1e-08,205.7,205.63,13.59559401]
[1759151092989,1e-08,205.73,205.71,4.86121238]
[1759151093195,0.66,205.87,205.73,13.59559401]
[1759151093412,0.66,205.86,205.74,4.28218775]
[1759151093615,0.66,205.86,205.75,3.61218775]
[1759151093616,4.52340561,205.8,205.75,3.61218775]
[1759151093802,0.66,205.79,205.71,40.42]
[1759151094002,4.52340561,205.77,205.66,40.44]
[1759151094315,0.66,205.87,205.68,26.0]
[1759151094488,0.66,205.86,205.69,41.35]
[1759151094694,26.0,205.82,205.7,0.67]
[1759151094915,5.18340561,205.85,205.71,29.26]
[1759151095212,13.59559401,205.83,205.72,0.67]
[1759151095414,14.25559401,205.83,205.72,0.67]
[1759151095801,26.0,205.8,205.72,0.67]
[1759151096192,26.66,205.8,205.7,40.68]
[1759151097013,26.0,205.76,205.7,40.68]
[1759151097205,30.52340561,205.76,205.67,0.67]
[1759151097612,26.0,205.76,205.67,0.67]
[1759151097910,26.0,205.78,205.67,0.67]
[1759151098421,0.66,205.77,205.67,0.67]
[1759151098621,0.66,205.77,205.67,41.33]
[1759151099227,26.0,205.74,205.67,40.66]
[1759151099423,4.8600311,205.76,205.68,0.67]
[1759151099812,4.8600311,205.76,205.67,40.66]
[1759151099813,17.67010886,205.76,205.67,40.66]
[1759151100123,26.0,205.73,205.65,0.67]
[1759151100325,26.0,205.73,205.66,40.62]
[1759151100724,30.52340561,205.73,205.66,40.62]
[1759151100926,26.0,205.69,205.61,0.67]
[1759151101231,4.86192143,205.68,205.61,0.67]
[1759151101608,26.0,205.65,205.58,40.6]
[1759151101829,26.0,205.7,205.59,0.67]
[1759151102022,4.52340561,205.69,205.59,0.67]
[1759151102217,0.66,205.68,205.59,0.67]
[1759151102423,0.66,205.68,205.59,41.27]
[1759151102633,0.66,205.68,205.59,0.67]
[1759151102931,0.66,205.68,205.59,41.27]
[1759151103138,26.0,205.64,205.59,41.27]
[1759151103322,26.0,205.64,205.59,0.67]
[1759151103527,13.59559401,205.72,205.6,0.67]
[1759151103835,26.0,205.69,205.6,0.67]
[1759151104037,0.66,205.68,205.57,40.58]
[1759151104218,0.66,205.68,205.57,41.25]
[1759151104415,0.66,205.68,205.57,40.58]
[1759151104627,26.0,205.69,205.58,0.67]
[1759151105028,26.66,205.69,205.58,0.67]
[1759151105224,17.016725,205.68,205.58,0.67]
[1759151105426,17.016725,205.68,205.58,41.23]
[1759151105752,26.0,205.65,205.58,41.23]
[1759151105950,26.0,205.65,205.58,40.56]
[1759151106244,26.66,205.65,205.57,40.54]
[1759151106412,26.0,205.63,205.57,40.54]
[1759151107523,30.86313918,205.63,205.57,40.54]
[1759151108037,26.0,205.66,205.58,0.67]
[1759151108417,17.016725,205.68,205.58,0.67]
[1759151108628,0.66,205.67,205.58,0.67]
[1759151109030,26.66,205.67,205.58,0.67]
[1759151109245,4.86239424,205.66,205.58,0.67]
[1759151110138,4.8621219,205.68,205.58,0.67]
[1759151110328,30.8621219,205.68,205.58,0.67]
[1759151110530,30.86194855,205.68,205.58,0.67]
[1759151110740,26.0,205.67,205.58,0.67]
[1759151111439,4.86239424,205.66,205.59,40.46]
[1759151111630,4.86239424,205.66,205.58,0.67]
[1759151111631,17.01837984,205.66,205.58,0.67]
[1759151111942,17.01837984,205.66,205.59,40.42]
[1759151112424,0.66,205.65,205.54,0.67]
[1759151112743,4.86239424,205.66,205.54,41.07]
[1759151112943,5.52239424,205.66,205.55,0.67]
[1759151113738,17.67837984,205.66,205.55,0.67]
[1759151114049,17.67837984,205.66,205.55,79.97]
[1759151114554,26.0,205.63,205.55,79.97]
[1759151114844,26.0,205.63,205.55,0.67]
[1759151115643,26.0,205.59,205.52,0.68]
[1759151115947,26.0,205.59,205.52,41.06]
[1759151116543,0.67,205.62,205.52,41.06]
[1759151116738,5.19340561,205.61,205.52,41.06]
[1759151117048,5.19340561,205.6,205.49,14.96475438]
[1759151117251,26.0,205.57,205.49,0.68]
[1759151117455,4.52340561,205.54,205.45,0.68]
[1759151117636,17.02914416,205.53,205.45,0.68]
[1759151117831,0.67,205.6,205.45,15.06408283]
[1759151118045,26.67,205.6,205.46,0.68]
[1759151119657,26.0,205.56,205.46,0.68]
[1759151120450,26.67,205.56,205.46,0.68]
[1759151120845,26.67,205.56,205.47,40.38]
[1759151121154,26.67,205.56,205.48,0.69]
[1759151121762,4.86499635,205.55,205.48,0.69]
[1759151121966,26.67,205.56,205.48,0.69]
[1759151122138,5.56441007,205.58,205.48,0.69]
[1759151122742,5.56441007,205.58,205.48,79.99]
[1759151122950,20.0,205.72,205.48,79.99]
[1759151122951,0.7,205.63,205.5,13.59559401]
[1759151123151,4.86334014,205.62,205.51,0.69]
[1759151123346,30.86334014,205.62,205.51,0.69]
[1759151123662,0.7,205.61,205.52,40.34]
[1759151123869,4.86381322,205.6,205.51,0.69]
[1759151124057,4.86381322,205.6,205.52,40.34]
[1759151124366,4.86381322,205.6,205.53,0.69]
[1759151125065,20.0,205.79,205.53,0.69]
[1759151125066,6.6596386,205.7,205.53,0.69]
[1759151125262,0.7,205.64,205.53,0.69]
[1759151125469,26.0,205.63,205.53,0.69]
[1759151125770,26.0,205.63,205.54,40.38]
[1759151125948,17.02169049,205.62,205.54,40.38]
[1759151126352,4.86334014,205.62,205.54,40.38]
[1759151126871,0.7,205.61,205.54,40.38]
[1759151127170,30.86283587,205.65,205.55,0.69]
[1759151127351,5.56283587,205.65,205.55,0.69]
[1759151127556,26.0,205.64,205.54,40.38]
[1759151127751,26.0,205.64,205.55,0.69]
[1759151128167,0.7,205.69,205.56,13.59559401]
[1759151128468,0.7,205.69,205.57,0.69]
[1759151129269,0.7,205.73,205.58,13.59559401]
[1759151129448,0.7,205.73,205.6,13.59559401]
[1759151129766,26.7,205.73,205.61,40.4]
[1759151129973,0.7,205.73,205.62,0.69]
[1759151130148,4.86097608,205.72,205.62,0.69]
[1759151130353,26.0,205.7,205.62,0.69]
[1759151130766,4.86097608,205.72,205.62,0.69]
[1759151131076,26.0,205.72,205.62,0.69]
[1759151132174,5.56051261,205.74,205.62,0.69]
[1759151132347,5.56051261,205.74,205.63,13.59559401]
[1759151132547,17.7092822,205.77,205.65,13.59559401]
[1759151132768,43.7092822,205.77,205.66,0.69]
[1759151132964,17.7092822,205.77,205.66,0.69]
[1759151133370,5.55979491,205.77,205.66,0.69]
[1759151133847,31.55979491,205.77,205.66,0.69]
[1759151134252,0.7,205.77,205.66,5.5523916]
[1759151134555,5.5598889,205.77,205.67,0.69]
[1759151134760,5.5598889,205.77,205.68,40.32]
[1759151135067,5.5598889,205.77,205.69,0.69]
[1759151135585,0.7,205.77,205.69,214.69]
[1759151136064,5.55981094,205.77,205.69,214.69]
[1759151136266,0.7,205.82,205.7,0.69]
[1759151136465,0.7,205.82,205.7,214.69]
[1759151136662,0.7,205.81,205.71,0.69]
[1759151136883,26.0,205.79,205.71,79.3]
[1759151137075,0.7,205.78,205.71,79.3]
[1759151137255,0.7,205.77,205.71,79.3]
[1759151137753,0.7,205.76,205.63,214.0]
[1759151137957,0.7,205.75,205.64,40.97]
[1759151138154,4.86050354,205.74,205.65,0.69]
[1759151138354,0.7,205.73,205.65,0.69]
[1759151139877,4.86023053,205.76,205.65,214.69]
[1759151140086,26.0,205.77,205.66,14.28559401]